Cogmind - Beta 14 @@@ ROGUE MODE // 2024.08.08 @ 04:10:09 Player: MC HELL Result: Destroyed by G-47 Trooper with Particle Gun Performance ------------- Evolutions (2) 1000 Regions Visited (4) 800 Robots Destroyed (39) 195 Value Destroyed (1052) 1052 Prototype IDs (1) 20 Alien Tech Used (0) 0 Bonus (47) 47 TOTAL SCORE: 3114 Bonus ------- Follower Combat Kills 87 Friendly Fire -40 Cogmind --------- Core Integrity 0/550 Matter 282/300 Energy 100/100 System Corruption 0% Temperature Cool (18) Movement Core (350) Ox6 Location -8/Materials Parts ------- > --- POWER (3) -------- (None) > --- PROPULSION (2) --- (None) > --- UTILITY (4) ------ Large Storage Unit Improved Signal Interpreter Improved Targeting Computer > --- WEAPON (2) ------- (None) > --- INVENTORY (15) --- Light Treads Aluminum Leg Large Storage Unit Small Battery (100) Medium Matter Pod (100) Visual Processing Unit Terrain Scanner Propulsion Shielding Light Armor Plating Medium Armor Plating Peak State ------------ > --- POWER ------------ Light Ion Engine Improved Ion Engine Light Deuterium Engine > --- PROPULSION ------- Aluminum Leg Improved Aluminum Leg > --- UTILITY ---------- Large Storage Unit Improved Signal Interpreter Improved Targeting Computer ECM Suite > --- WEAPON ----------- Heavy Particle Gun Mini Grenade Launcher > --- INVENTORY -------- Light Treads Aluminum Leg Large Storage Unit Small Battery Medium Matter Pod Visual Processing Unit Terrain Scanner Propulsion Shielding Light Armor Plating Medium Armor Plating Medium Laser Mining Laser [Rating: 23] Favorites ----------- Power Ion Engine Engine Ion Engine Propulsion Light Treads Treads Light Treads Leg Aluminum Leg Utility Large Storage Unit Device ECM Suite Storage Large Storage Unit Processor Improved Targeting Computer Weapon Medium Laser Energy Gun Medium Laser Ballistic Gun Assault Rifle Launcher Mini Grenade Launcher Special Weapon Mining Laser Build | -11 -10 -10 -9 -8 ------- Run | Yrd Mat Min Mat Mat Slots Evolved 4 | . . . 2 2 Power 2 | . . . 1 1 Propulsion . | . . . . . Utility 2 | . . . 1 1 Weapon . | . . . . . Parts Attached 40 | 8 5 2 9 16 Power 8 | 1 1 . 2 4 Engine 8 | 1 1 . 2 4 Core . | . . . . . Reactor . | . . . . . Propulsion 10 | 4 . . 1 5 Treads 4 | 3 . . 1 . Leg 6 | 1 . . . 5 Wheel . | . . . . . Hover . | . . . . . Flight . | . . . . . Utility 13 | 1 4 2 3 3 Device 6 | . 1 2 1 2 Storage 4 | 1 3 . . . Processor 3 | . . . 2 1 Hackware . | . . . . . Protection . | . . . . . Artifact . | . . . . . Weapon 9 | 2 . . 3 4 Energy Gun 4 | 1 . . 1 2 Energy Cannon . | . . . . . Ballistic Gun 2 | 1 . . 1 . Ballistic Cannon . | . . . . . Launcher 2 | . . . 1 1 Special Weapon 1 | . . . . 1 Impact Weapon . | . . . . . Slashing Weapon . | . . . . . Piercing Weapon . | . . . . . Special Melee Weapon . | . . . . . Unidentified Prototypes 1 | . . . . 1 Parts Lost 17 | . . . 5 12 Power 6 | . . . 2 4 Propulsion 4 | . . . 1 3 Utility 2 | . . . 1 1 Weapon 5 | . . . 1 4 Highest Loss Streak 9 | . . . 5 9 To Critical Strikes 1 | . . . . 1 Average Slot Usage (%) 94 | . 99 100 91 91 Engine 17 | . 14 14 17 22 Treads 17 | . 28 28 19 . Leg 5 | . . . . 16 Device 12 | . 9 14 13 12 Storage 12 | . 18 14 11 9 Processor 6 | . . . 6 14 Energy Gun 11 | . 14 14 7 10 Ballistic Gun 8 | . 14 14 8 . Launcher 2 | . . . 5 4 Peak Build Rating 23 | 6 8 8 12 23 Average Rating 11 | 5 7 8 9 18 On Entrance 6 | . 6 8 8 8 Naked Turns . | . . . . . Heaviest Build 47 | 12 47 31 35 43 Greatest Support 40 | 40 40 40 40 23 Greatest Overweight (x) 3 | 1 1 . 1 3 Average Overweight (x) . | . . . . 1 Largest Inventory Capacity 15 | 8 15 15 15 15 Average Capacity 14 | 7 14 15 15 15 Most Carried 15 | 7 13 15 15 13 Average Carried 11 | 5 8 14 14 11 Final Capacity 15 | 8 15 15 15 15 Final Carried 15 | 6 13 15 14 10 Class Distribution -------------------- 86% | Mutant 9% | Infiltrator-Mutant 4% | Scavenger-Mutant Dominant Class ---------------- Mutant | -10/Materials Mutant | -10/Mines Mutant | -9/Materials Mutant | -8/Materials Resources | -11 -10 -10 -9 -8 ----------- Run | Yrd Mat Min Mat Mat Matter Collected 882 | 187 47 231 97 320 Remotely . | . . . . . Salvage Created 1011 | . 47 121 326 517 Parts 68 | . 9 2 29 28 Haulers Intercepted . | . . . . . Recyclers Shooed 2 | . . . 1 1 Parts Field Recycled . | . . . . . Retrieved Matter . | . . . . . Parts Self-Destructed . | . . . . . Prevented . | . . . . . Kills | -11 -10 -10 -9 -8 ------- Run | Yrd Mat Min Mat Mat Combat Hostiles Destroyed 27 | . 3 3 9 12 Guns 11 | . 3 3 2 3 AOE 14 | . . . 7 7 Classes Destroyed 10 | . 1 1 5 3 Worker 4 | . . . 3 1 Builder 3 | . . . 1 2 Tunneler 1 | . . . 1 . Recycler 2 | . . . . 2 Watcher 2 | . . . 1 1 Swarmer 7 | . 3 . 4 . Grunt 13 | . . 3 3 7 Duelist 1 | . . . . 1 Sentry 4 | . . . 2 2 Hunter 2 | . . . . 2 Best Kill Streak 12 | . 2 2 12 8 Combat Bots Only 7 | . 2 2 7 5 Max Kills in Single Turn 3 | . 1 1 3 2 Gunslinging . | . . . . . Exploded 2 | . . . 2 2 Melee . | . . . . . Uniques/NPCs Destroyed . | . . . . . Combat | -11 -10 -10 -9 -8 -------- Run | Yrd Mat Min Mat Mat Hostile Shots Fired 219 | . 10 34 28 147 Missed 71 | . 4 8 8 51 Damage Taken 2527 | . 50 334 715 1428 Core 777 | . . 50 166 561 Absorbed by Shields . | . . . . . Core Remaining (%) 79 | 100 . 80 58 . Volleys Fired 68 | . 4 14 20 30 Largest 2 | . 2 2 2 2 Hottest 105 | . 70 70 80 105 Shots Fired 123 | . 8 28 33 54 Gun 95 | . 8 28 22 37 Cannon . | . . . . . Launcher 28 | . . . 11 17 Special . | . . . . . Kinetic 26 | . 4 14 8 . Thermal 69 | . 4 14 14 37 Explosive 28 | . . . 11 17 Electromagnetic . | . . . . . Robot Hit Streak 14 | . 3 14 5 8 Robot Miss Streak 6 | . 2 1 4 6 Penetration Max . | . . . . . Secondary Targets . | . . . . . Shots Hit Robots 77 | . 4 23 16 34 Core Hits 71 | . 3 6 28 34 Critical Kills . | . . . . . Critical Parts Destroyed . | . . . . . Critical Strikes 4 | . . 2 . 2 Burn 4 | . . 2 . 2 Melee Attacks . | . . . . . Impact . | . . . . . Slashing . | . . . . . Piercing . | . . . . . Sneak Attacks . | . . . . . Combat Hostiles . | . . . . . Follow-up Attacks . | . . . . . Damage Inflicted 2870 | . 47 275 974 1574 Guns 888 | . 47 275 165 401 Cannons . | . . . . . Explosions 1976 | . . . 809 1167 Melee . | . . . . . Ramming 6 | . . . . 6 Kinetic 240 | . 23 152 65 . Thermal 648 | . 24 123 100 401 Explosive 1976 | . . . 809 1167 Electromagnetic . | . . . . . Impact . | . . . . . Slashing . | . . . . . Piercing . | . . . . . Highest Corruption 7 | . . . 7 . Average Corruption 7 | . . . 7 . Corruption Purged . | . . . . . Corruption Blocked . | . . . . . Effects 3 | . . . 3 . Message Errors 2 | . . . 2 . Matter Fused 1 | . . . 1 . Overload Shots . | . . . . . Overflow Damage 47 | . . . 34 13 Projectiles . | . . . . . Explosions 47 | . . . 34 13 Melee . | . . . . . Knockbacks . | . . . . . Impact . | . . . . . Kinetic . | . . . . . Secondary . | . . . . . Self-Inflicted Damage 148 | . . . 114 34 Shots 5 | . . . 3 2 Rammed 5 | . . . . 5 Targets Rammed 6 | . . . . 6 Kicked 1 | . . . . 1 Crushed . | . . . . . Highest Temperature 394 | . 18 111 47 394 Average Temperature 102 | . 8 47 18 143 Received Heat Transfer 609 | . . 195 54 360 Effects 2 | . . . . 2 Shutdowns 2 | . . . . 2 Siege Activations . | . . . . . Robots Corrupted . | . . . . . Combat Hostiles . | . . . . . Parts Fried . | . . . . . Impact Corruptions . | . . . . . Robots Melted 2 | . . . . 2 Combat Hostiles 2 | . . . . 2 Parts Melted 7 | . . 1 1 5 Heat Transferred 1961 | . 74 518 296 1073 Parts Sabotaged . | . . . . . Parts Stolen . | . . . . . Parts Stripped . | . . . . . Power Chain Reactions . | . . . . . Alert | -11 -10 -10 -9 -8 ------- Run | Yrd Mat Min Mat Mat Peak Influence 279 | . 115 109 238 279 Initial 55 | . . 44 21 55 Average 92 | . 45 99 79 152 Maximum Alert Level 1 | . . . 1 1 Low Security (%) 89 | 100 100 100 96 67 Level 1 10 | . . . 3 32 Level 2 . | . . . . . Level 3 . | . . . . . Level 4 . | . . . . . Level 5 . | . . . . . High Security . | . . . . . Max Security . | . . . . . Squads Dispatched 6 | . 1 . 2 3 Investigation 2 | . 1 . 1 . Extermination . | . . . . . Reinforcement 4 | . . . 1 3 Assault . | . . . . . Garrison . | . . . . . Intercept . | . . . . . Searches Triggered . | . . . . . Construction Impeded 2 | . . . 1 1 Haulers Reinforced . | . . . . . Active Scanning Responses . | . . . . . Cargo Convoy Interrupts . | . . . . . Stealth | -11 -10 -10 -9 -8 --------- Run | Yrd Mat Min Mat Mat Distress Signals 2 | . 1 . . 1 Communications Jammed . | . . . . . Distress Signals . | . . . . . Times Spotted 49 | . 7 6 12 24 Peak Tracking Total 6 | . 3 2 5 6 Tactical Retreats 6 | . . 1 . 5 Traps | -11 -10 -10 -9 -8 ------- Run | Yrd Mat Min Mat Mat Traps Triggered 2 | . . . 2 . Indirectly . | . . . . . Trap Hack Attempts . | . . . . . Triggered . | . . . . . Disarmed . | . . . . . Reprogrammed . | . . . . . Reused . | . . . . . Traps Extracted . | . . . . . Installed . | . . . . . Triggered . | . . . . . Machines | -11 -10 -10 -9 -8 ---------- Run | Yrd Mat Min Mat Mat Machines Disabled 2 | . . . 1 1 Max in Single Turn 1 | . . . . 1 Machines Repaired . | . . . . . Machines Dismantled . | . . . . . Machines Sabotaged . | . . . . . Overloaded Fab Kills . | . . . . . Hacking | -11 -10 -10 -9 -8 --------- Run | Yrd Mat Min Mat Mat Machines Accessed 4 | . 1 . 1 2 Terminals 2 | . 1 . . 1 Fabricators . | . . . . . Repair Stations . | . . . . . Recycling Units 1 | . . . 1 . Scanalyzers 1 | . . . . 1 Garrison Access . | . . . . . Total Hacks 10 | . 2 . 3 5 Successful 7 | . . . 3 4 Failed 3 | . 2 . . 1 Catastrophic 1 | . 1 . . . Database Lockouts . | . . . . . Manual . | . . . . . Terminals 4 | . 2 . . 2 Fabricators . | . . . . . Repair Stations . | . . . . . Recycling Units 3 | . . . 3 . Scanalyzers 3 | . . . . 3 Garrison Access . | . . . . . Terminal Hacks 2 | . . . . 2 Record 2 | . . . . 2 Fabricator Hacks . | . . . . . Repair Station Hacks . | . . . . . Recycling Unit Hacks 3 | . . . 3 . Recycle Component 1 | . . . 1 . Process 1 | . . . 1 . Retrieve Matter 1 | . . . 1 . Scanalyzer 2 | . . . . 2 Insert Component 1 | . . . . 1 Analyze 1 | . . . . 1 Garrison Access Hacks . | . . . . . Unauthorized Hacks . | . . . . . Terminals . | . . . . . Fabricators . | . . . . . Repair Stations . | . . . . . Recycling Units . | . . . . . Scanalyzers . | . . . . . Garrison Access . | . . . . . Data Cores Recovered . | . . . . . Used . | . . . . . Hacking Detections 2 | . 1 . . 1 Full Trace Events 1 | . 1 . . . Feedback Events . | . . . . . Feedback Blocked . | . . . . . Robot Schematics Acquired . | . . . . . Robots Built . | . . . . . Authchips . | . . . . . Time . | . . . . . Total Robot Build Rating . | . . . . . Part Schematics Acquired 1 | . . . . 1 Parts Built . | . . . . . Authchips . | . . . . . Time . | . . . . . Total Part Build Rating . | . . . . . Parts Repaired . | . . . . . Time . | . . . . . Parts Recycled 1 | . . . 1 . Recycled Matter 91 | . . . 91 . Retrieved Matter 91 | . . . 91 . Retrieved Components . | . . . . . Parts Scanalyzed 1 | . . . . 1 Part Schematics Acquired 1 | . . . . 1 Parts Damaged 1 | . . . . 1 Bothacking | -11 -10 -10 -9 -8 ------------ Run | Yrd Mat Min Mat Mat Used RIF Installer . | . . . . . Robots Hacked . | . . . . . Non-combat . | . . . . . Combat . | . . . . . Robot Hacks Applied . | . . . . . Relay Couplers Released . | . . . . . Fabnet Peak Effective % . | . . . . . Robots Rewired . | . . . . . Allies Hacked . | . . . . . Hacks Repelled . | . . . . . Allies | -11 -10 -10 -9 -8 -------- Run | Yrd Mat Min Mat Mat Total Allies 2 | . . 2 . . Largest Group 2 | . . 2 2 . Highest-Rated Group 43 | . . 43 43 . Highest-Rated Ally 31 | . . 31 31 . Total Orders . | . . . . . Ally Attacks 13 | . . 6 7 . Total Damage 146 | . . 84 62 . Kills 3 | . . 1 2 . Allies Corrupted . | . . . . . Allies Melted . | . . . . . Intel | -11 -10 -10 -9 -8 ------- Run | Yrd Mat Min Mat Mat Robot Analysis Total . | . . . . . Derelict Logs Recovered . | . . . . . Drone Launches . | . . . . . Drone Recoveries . | . . . . . Exploration | -11 -10 -10 -9 -8 ------------- Run | Yrd Mat Min Mat Mat Turns Passed 2035 | 132 392 444 484 583 Spaces Moved 879 | 61 142 239 219 218 Core 14 | 14 . . . . Treads 642 | 42 142 239 219 . Legs 223 | 5 . . . 218 Wheels . | . . . . . Hover . | . . . . . Flight . | . . . . . Fastest Speed 50 | 50 160 160 160 120 Average Speed 174 | 135 181 160 170 201 Slowest Speed 330 | 190 240 160 240 330 Overloaded Moves . | . . . . . Propulsion Burnouts . | . . . . . Robots Hopped . | . . . . . Cave-ins Triggered 1 | . . . 1 . Exploration Rate (%) 23 | 5 24 48 23 15 Regions Visited 4 Branch Regions 1 Pre-discovered Areas . | . . . . . Known Exits Taken . | . . . . . Unknown Exits Taken 4 | 1 1 1 1 . Scrap Searched 1 | . . 1 . . Spaces Dug . | . . . . . Terrain Destroyed 166 | . . . 76 90 Melee . | . . . . . Projectile . | . . . . . AOE 166 | . . . 76 90 Terrain Rammed . | . . . . . Walls Destroyed . | . . . . . Machines Disabled . | . . . . . Actions | -11 -10 -10 -9 -8 --------- Run | Yrd Mat Min Mat Mat Total 1237 | 108 268 272 296 293 Wait 205 | 32 106 14 39 14 Move 875 | 60 141 238 218 218 Hop . | . . . . . Pick Up 33 | 7 10 3 6 7 Fast Attach 6 | 5 . . 1 . Attach 17 | 2 1 . 3 11 Detach 2 | 1 . . . 1 Swap 17 | 1 4 2 5 5 Drop 8 | . 2 1 4 1 Fire 68 | . 4 14 20 30 Melee . | . . . . . Ram 5 | . . . . 5 Kick 1 | . . . . 1 Crush . | . . . . . Escape Stasis . | . . . . . Rewire . | . . . . . Trap . | . . . . . Miscellaneous . | . . . . . Route ------- -11/Scrapyard -10/Materials -10/Mines -9/Materials -8/Materials History --------- Turn | Location | Event 18 | -11/Scrapyard | Discovered new exit (range 15) 133 | -11/Scrapyard | Entered Materials 312 | -10/Materials | Build established: Mutant 470 | -10/Materials | Discovered new exit (range 15) 525 | -10/Materials | Entered Mines 561 | -10/Mines | Discovered new exit (range 13) 969 | -10/Mines | Entered Materials 969 | -9/Materials | Accompanied by 2 allies 969 | -9/Materials | Evolved 2 slots: Power x1, Utility x1 974 | -9/Materials | Led the pair of lost Derelicts to an unsafe place 1353 | -9/Materials | Crushed by falling debris 1402 | -9/Materials | Destroyed 7 combat bots 1410 | -9/Materials | Lost 5 parts (2p1n1u1w) 1417 | -9/Materials | Discovered new exit (range 16) 1453 | -9/Materials | Entered another Materials area 1453 | -8/Materials | Evolved 2 slots: Power x1, Utility x1 1929 | -8/Materials | Lost 3 parts (1p1n1w) 2023 | -8/Materials | Core integrity fell below 50% 2033 | -8/Materials | Core integrity fell below 20% 2036 | -8/Materials | Destroyed by G-47 Trooper with Particle Gun Last Messages --------------- U-05 Engineer lays Concrete. Slammed into X-57 Shotgunner. U-05 Engineer lays Concrete. K-01 Serf collects debris. U-05 Engineer lays Concrete. K-01 Serf collects debris. U-05 Engineer lays Concrete. R-06 Scavenger collects Hvy. Assault Rifle. U-05 Engineer lays Concrete. Slammed into G-47 Trooper. U-05 Engineer lays Concrete. K-01 Serf collects debris. U-05 Engineer lays Concrete. K-01 Serf collects debris. U-05 Engineer lays Concrete. R-06 Scavenger collects Imp. Ion Engine. U-05 Engineer lays Concrete. Slammed into G-47 Trooper. Acquired 46 matter. U-05 Engineer lays Concrete. Map ----- +----------------------------------------------------+ | ?????????????????????????????????????????????????? | | ?????????????????????????????????????????????????? | | ?????????????????????????????????????????????????? | | ?????????????????????????????????????????????????? | | ?????????????????????????????????????????????????? | | ?????????????????????????????????????????????????? | | ?????????????????????????????????????????????????? | | ?????????????????????????????????????????????????? | | ?????????????????????????????????????????????????? | | ?????????????????????????????????????????????????? | | ??????????????????????? ?????????????????????????? | | ?????????????????????# ????????????????????????? | | ?????????????????????# ????????????????????????? | | ?????????????????????# ????????????????????????? | | ?????????????????????# ????????????????????????? | | ?????????????????????# ????????????????????????? | | ?????????????????????# ????????????????????????? | | ?????????????????????# ????????????#???????????? | | ?????????????????????# #?????????? #???????????? | | ????????????????????## ##???????k #???????????? | | ????????????????????# ####### ?????????????? | | ????????????????????# k ???????????????? | | ????????????????????# r%= k ???H?????????????? | | ????????????????????# ! =% ???????????????????? | | ????????????????????# #????????????????????? | | ????????????????##### [@g ###??????????????????? | | ????????????????# x = #??????????????????? | | ????????????????# ugg #??????????????????? | | ????????????????# u #??????????????????? | | ????????????????# #??????????????????? | | ????????????????# #??????????????????? | | ????????????????# #??????????????????? | | ????????????????#+##########u##??????????????????? | | ???????????????????????????#u#???????????????????? | | ???????????????????????????# ###########?????????? | | ?????????????????????????### # #?????????? | | ??????????????????????#### # + #?????????? | | ??????????????????????# # # #?????????? | | ??????????????????????# "" # # #?????????? | | ??????????????????????# " # # #######?????????? | | ??????????????????????# " # # ##########???????? | | ?????????????????????## # #% + #?????? | | ?????????????????????# + # #" """ #?????? | | ?????????????????????# # #T """ ?#?????? | | ?????????????????????# # # #" """ #?????? | | ?????????????????????# + # [ # #?????? | | ?????????????????????# # ## # # """ #?????? | | ?????????????????????## # #% !# """ ??????? | | ??????????????????????# # +=%| # """ #?????? | | ??????????????????????# #%#[! #?????? | +----------------------------------------------------+ Best States ------------- Heat Dissipation 31 Energy Generation 28 Energy Capacity 470 Matter Stores 300 Matter Capacity 300 Sight Range 16 Terrain Scan Range 14 Terrain Scan Density 10 ECM Strength 1 Evasion (%) 50 Targeting Accuracy 6 Recoil Reduction 2 Item Schematics ----------------- Weight Redist. System | -8/Materials | Scanalyzed Robot Schematics ------------------ None Fabricated ------------ Nothing Alien Tech Used ----------------- None Achievements -------------- It's Just You Challenges ------------ None Game ------ Seed ZhirovNullDrive Manual? 0 Play Time 00:29:48 Cumulative 11.1 hours Start 2024.08.08 @ 03:39:50 End 2024.08.08 @ 04:10:09 Sessions 1 Manual Loads 0 Difficulty Rogue Special Mode None Game No. 25 Rogue 25 Adventurer 0 Explorer 0 Win Type - Total 0 Types 0/0/0/0/0/0/0/0/0 Lore% 12 Gallery% 18 Achievement% 15 Wizard Run 0 Options --------- Layout 1 ASCII 0 Keyboard 0 Movement Mouse Keybinds 0 Fullscreen 1 Font 32/SmallcapsGlow Map View 50x35 Zoom Use 0% Tactical HUD 0 Map Filters NONE Filters NONE Steam 1 RUN: a98ad278-7324-4aee-80cb-cf3acdc77be8